{"text_format":"3","workbook":"xlsx","n_sheets":7,"sheets":["Ввод параметров для расчетов","Ввод параметров","Участники","Материалы стен","Матрица ставок_Инфо","Матрица по аккред._Инфо","Участники_проверка на заведении"],"not_rendered":{"macros":1,"defined_names":2,"comments":1},"read":"whole","date_system":"1900"}

{"sheet":"Ввод параметров для расчетов","index":0,"n_rows":37,"n_cols":19,"rows_kept":37,"merged":[[11,2,12,3],[11,5,11,7],[21,5,21,6],[23,5,23,7],[29,4,29,6],[30,4,30,6],[31,4,31,6],[32,4,32,6],[33,4,33,6]]}
[null,null,"ИЗМЕНЯЕМЫЕ ЯЧЕЙКИ"]
[]
[]
[null,null,"КЛЮЧЕВЫЕ ПАРАМЕТРЫ КРЕДИТОВАНИЯ",null,null,"РАСЧЕТ СТАВКИ И ЕЖЕМЕСЯЧНОГО ПЛАТЕЖА"]
[{"$nulls":17},"Да"]
[null,null,"Личное страхование","Да",null,null,"Первая часть кредита","Вторая часть кредита \n(для учета по Комбо-ипотеке)",{"$nulls":9},"Нет"]
[null,null,"Регион приобретения недвижимости","МиМО/СПбиЛО"]
[null,null,"Программа кредитования","Семейная ипотека",null,"Сумма кредита",{"$f":"IF(AND(D7=\"МиМО/СПбиЛО\",D8=\"Семейная ипотека\",D24>12000000),12000000,IF(AND(D7=\"иные регионы\",D8=\"Семейная ипотека\",D24>6000000),6000000,IF(AND(OR(D7=\"МиМО/СПбиЛО\",D7=\"Краснодарский край\"),D8=\"Собственная программа\",D24>50000000),50000000,IF(AND(D7=\"иные регионы\",D8=\"Собственная программа\",D24>30000000),30000000,IF(AND(OR(D7=\"МиМО/СПбиЛО\",D7=\"иные регионы\"),D8=\"IT-Ипотека\",D24>9000000),9000000,D24)))))","v":{"v":12000000,"d":"12,000,000.00 "}},{"$f":"IF(D8=\"Собственная программа\",\"\",IF(AND(D8=\"Семейная ипотека\",D7=\"иные регионы\",OR(D24<6000000,D24=6000000)),\"\",IF(AND(D8=\"Семейная ипотека\",D7=\"МиМО/СПбиЛО\",OR(D24<12000000,D24=12000000)),\"\",IF(AND(D8=\"IT-Ипотека\",OR(D24<9000000,D24=9000000)),\"\",IF(AND(D8=\"IT-Ипотека\",D24>18000000),18000000-G8,IF(AND(D8=\"Семейная ипотека\",D7=\"иные регионы\",D24>15000000),15000000-G8,IF(AND(D8=\"Семейная ипотека\",D7=\"МиМО/СПбиЛО\",D24>30000000),30000000-G8,D24-G8)))))))","v":{"v":6800000,"d":"6,800,000.00 "}}]
[null,null,"Цель кредита","Покупка земли и строительство дома",null,"Ставка по кредиту ",{"$f":"IF(AND(D6=\"Да\",D8=\"Семейная ипотека\"),K15,IF(AND(D6=\"Да\",D8=\"Семейная ипотека\"),K17,IF(AND(D6=\"Да\",D8=\"Госпрограмма 2020\"),M15,IF(AND(D6=\"Да\",D8=\"Госпрограмма 2020\"),M17,IF(AND(D6=\"Нет\",D8=\"Семейная ипотека\"),K14,IF(AND(D6=\"Нет\",D8=\"Семейная ипотека\"),K16,IF(AND(D6=\"Нет\",D8=\"Госпрограмма 2020\"),M14,IF(AND(D6=\"Нет\",D8=\"Госпрограмма 2020\"),M16,IF(AND(D6=\"Да\",D8=\"IT-Ипотека\"),N15,IF(AND(D6=\"Да\",D8=\"IT-Ипотека\"),N17,IF(AND(D6=\"Нет\",D8=\"IT-Ипотека\"),N14,IF(AND(D6=\"Нет\",D8=\"IT-Ипотека\"),N16,IF(AND(D6=\"Да\",D12=\"Нет\",D8=\"Собственная программа\"),P15,IF(AND(D6=\"Нет\",D12=\"Нет\",D8=\"Собственная программа\"),P16,IF(AND(D6=\"Да\",D8=\"Семейная ипотека (для ДФО)\"),L15,IF(AND(D6=\"Да\",D8=\"Семейная ипотека (для ДФО)\"),L17,IF(AND(D6=\"Нет\",D8=\"Семейная ипотека (для ДФО)\"),L14,IF(AND(D6=\"Нет\",D8=\"Семейная ипотека (для ДФО)\"),L16,IF(AND(D6=\"Да\",D12=\"Да\",D8=\"Собственная программа\"),#REF!,IF(AND(D6=\"Нет\",D12=\"Да\",D8=\"Собственная программа\"),#REF!,\"\"))))))))))))))))))))","v":{"v":0.06,"d":"6.00%"}},{"$f":"IF(H8<>\"\",IF(AND(D6=\"Да\",OR(D8=\"Семейная ипотека\",D8=\"Семейная ипотека (для ДФО)\")),O15,IF(AND(D6=\"Да\",OR(D8=\"Семейная ипотека\",D8=\"Семейная ипотека (для ДФО)\")),O17,IF(AND(D6=\"Да\",D8=\"Госпрограмма 2020\"),O15,IF(AND(D6=\"Да\",D8=\"Госпрограмма 2020\"),O17,IF(AND(D6=\"Нет\",OR(D8=\"Семейная ипотека\",D8=\"Семейная ипотека (для ДФО)\")),O14,IF(AND(D6=\"Нет\",OR(D8=\"Семейная ипотека\",D8=\"Семейная ипотека (для ДФО)\")),O16,IF(AND(D6=\"Нет\",D8=\"Госпрограмма 2020\"),O14,IF(AND(D6=\"Нет\",D8=\"Госпрограмма 2020\"),O16,IF(H8<>\"\",IF(AND(D6=\"Да\",D8=\"IT-Ипотека\"),O15,IF(AND(D6=\"Да\",D8=\"IT-Ипотека\"),O17,IF(AND(D6=\"Нет\",D8=\"IT-Ипотека\"),O14,IF(AND(D6=\"Нет\",D8=\"IT-Ипотека\"),O16,\"\"))))))))))))),\"\")","v":{"v":0.215,"d":"21.50%"}}]
[null,null,"Категория подрядчика","Стандарт",null,"Срвзв. ставка (с учетом КОМБО-Ипотеки)",{"$f":"IF(H8=\"\",G9,((G8*G9+(H8*H9))/(G8+H8)))","v":{"v":0.11606382978723405,"d":"11.61%"}},{"$nulls":10},"Цели кредита","Подрядчики"]
[null,null,"Особенности расчетов по сделке","Обычная сделка",null,"Платеж по кредиту",{"$f":"IF(H8=\"\",-PMT(G10/12,D16,G8),-PMT(G10/12,D16,(G8+H8)))","v":{"v":187586.8231832134,"d":"187,586.82 ₽"}},{"$nulls":10},"Строительство дома на своем участке","Стандарт"]
[null,null,{"$f":"IF(AND(D7=\"МиМО/СПбиЛО\",D8=\"IT-Ипотека\"),\"Напоминание! По IT-Ипотеке участок не может быть расположен в Москве и Санкт-Петербурге, \nдопускается расположение участка в Московской или Ленинградской областях\",\"\")","v":""},null,null,{"$f":"IF(OR(AND(D8=\"Семейная ипотека\",D7=\"МиМО/СПбиЛО\",D24>12000000),AND(D8=\"Семейная ипотека\",D7=\"иные регионы\",D24>6000000),AND(D8=\"IT-Ипотека\",D24>9000000)),\"ВНИМАНИЕ, превышена максимальная суммы стандартной госпрограммы. Требуется Комбо-ипотека\",\"\")","v":"ВНИМАНИЕ, превышена максимальная суммы стандартной госпрограммы. Требуется Комбо-ипотека"},{"$nulls":11},"Покупка земли и строительство дома","Ключевой"]
[{"$nulls":10},"СИ","СИ для ДФО","ГП","IT","Комбо-транш","Базовая"]
[{"$nulls":9},"Клиент \"улица\" или зп-клиент (НЕ А-Клуб/Сотрудники) \nБЕЗ личного страхования",{"$f":"'Матрица ставок_Инфо'!C17","v":{"v":0.06999999999999999,"d":"7.0%"}},{"$f":"'Матрица ставок_Инфо'!D17","v":{"v":0.060000000000000005,"d":"6.0%"}},{"$f":"'Матрица ставок_Инфо'!E17","v":{"v":0.09,"d":"9.0%"}},{"$f":"'Матрица ставок_Инфо'!F17","v":{"v":0.06,"d":"6.0%"}},{"$f":"'Матрица ставок_Инфо'!G17","v":{"v":0.225,"d":"22.5%"}},{"$f":"'Матрица ставок_Инфо'!H17","v":{"v":0.225,"d":"22.5%"}}]
[{"$nulls":9},"Клиент \"улица\" или зп-клиент (НЕ А-Клуб/Сотрудники) \nС договором личного страхования",{"$f":"'Матрица ставок_Инфо'!C18","v":{"v":0.06,"d":"6.0%"}},{"$f":"'Матрица ставок_Инфо'!D18","v":{"v":0.05,"d":"5.0%"}},{"$f":"'Матрица ставок_Инфо'!E18","v":{"v":0.079,"d":"7.9%"}},{"$f":"'Матрица ставок_Инфо'!F18","v":{"v":0.06,"d":"6.0%"}},{"$f":"'Матрица ставок_Инфо'!G18","v":{"v":0.215,"d":"21.5%"}},{"$f":"'Матрица ставок_Инфо'!H18","v":{"v":0.215,"d":"21.5%"}}]
[null,null,"Срок кредитования, мес.",{"v":362,"d":"362.00 "},{"$f":"IF(MOD(D16-2,12)>0,\"Срок кредитования должен быть кратен 12 мес + 2 мес.\",\"\")","v":""},{"$nulls":4},"Клиент А-Клуб/Сотрудники\nБЕЗ личного страхования",{"$f":"'Матрица ставок_Инфо'!C19","v":{"v":0.06999999999999999,"d":"7.0%"}},{"$f":"'Матрица ставок_Инфо'!D19","v":{"v":0.060000000000000005,"d":"6.0%"}},{"$f":"'Матрица ставок_Инфо'!E19","v":{"v":0.09,"d":"9.0%"}},{"$f":"'Матрица ставок_Инфо'!F19","v":{"v":0.06,"d":"6.0%"}},{"$f":"'Матрица ставок_Инфо'!G19","v":{"v":0.225,"d":"22.5%"}},{"$f":"'Матрица ставок_Инфо'!H19","v":{"v":0.225,"d":"22.5%"}}]
[null,null,"Стоимость приобретаемого зем. участка",{"v":1000000,"d":"1,000,000.00 "},{"$nulls":5},"Клиент А-Клуб/Сотрудники\nС договором личного страхования",{"$f":"'Матрица ставок_Инфо'!C20","v":{"v":0.06,"d":"6.0%"}},{"$f":"'Матрица ставок_Инфо'!D20","v":{"v":0.05,"d":"5.0%"}},{"$f":"'Матрица ставок_Инфо'!E20","v":{"v":0.079,"d":"7.9%"}},{"$f":"'Матрица ставок_Инфо'!F20","v":{"v":0.06,"d":"6.0%"}},{"$f":"'Матрица ставок_Инфо'!G20","v":{"v":0.215,"d":"21.5%"}},{"$f":"'Матрица ставок_Инфо'!H20","v":{"v":0.215,"d":"21.5%"}},null,1]
[null,null,"Стоимость строительства",{"v":23000000,"d":"23,000,000.00 "}]
[null,null,"Общая стоимость для расчета кредита",{"$f":"D17+D18","v":{"v":24000000,"d":"24,000,000.00 "}},null,{"$f":"IF(AND(OR(D8=\"Семейная ипотека\",D8=\"Семейная ипотека для ДФО\"),D25>79.9%),\"Внимание! Необходимо увеличить размер ПВ; предельный К/З = 79,9%\",IF(AND(D8=\"Госпрограмма 2020\",D25>69.9%),\"Внимание! Необходимо увеличить размер ПВ; предельный К/З = 69,9%\",IF(AND(D8=\"IT-Ипотека\",D25>79.9%),\"Внимание! Необходимо увеличить размер ПВ; предельный К/З = 79,9%\",IF(AND(D8=\"Собственная программа\",D25>79.9%),\"Внимание! Необходимо увеличить размер ПВ; предельный К/З = 79,9%\",\"\"))))","v":""}]
[null,null,"Размер собственных средств (ПВ)_без учета МСК",{"v":4700000,"d":"4,700,000.00 "},null,{"$f":"IF(AND(OR(D8=\"Семейная ипотека\",D8=\"Семейная ипотека (для ДФО)\"),D25>79.9%),(D19*20.1%-D23),IF(AND(D8=\"Госпрограмма 2020\",D25>69.9%),(D19*30.1%-D23),IF(AND(D8=\"IT-Ипотека\",D25>79.9%),(D19*20.1%-D23),IF(AND(D8=\"Собственная программа\",D25>79.9%),(D19*20.1%-D23),\"\"))))","v":""},{"$nulls":11},"Категория клиента","Улица или зарплатник"]
[null,null,"Часть ПВ, которая уже внесена за зем. участок",{"v":200000,"d":"200,000.00 "},{"$nulls":14},"Сотрудник/А-Клуб"]
[null,null,"Часть ПВ, которая уже внесена на строительство",0,null,{"$f":"IF(D22>D20,\"ОШИБКА!Размер внесенного ПВ меньше заявленного\",\"\")","v":""}]
[null,null,"Размер МСК в счет ПВ",{"v":500000,"d":"500,000.00 "},{"$nulls":14},"Да"]
[null,null,"Размер кредитных средств",{"$f":"D19-D20-D23","v":{"v":18800000,"d":"18,800,000.00 "}},null,{"$f":"IF(AND(D8=\"Госпрограмма 2020\",D24>6000000),\"ВНИМАНИЕ, сумма кредита не может быть больше 6 млн руб.\",IF(AND(D8=\"Семейная ипотека\",D7=\"МиМО/СПбиЛО\",D24>30000000),\"ВНИМАНИЕ, сумма кредита (с учетом КОМБО-Ипотеки) не может быть больше 30 млн руб.\",IF(AND(D8=\"Семейная ипотека\",D7=\"иные регионы\",D24>15000000),\"ВНИМАНИЕ, сумма кредита (с учетом КОМБО-Ипотеки) не может быть больше 15 млн руб.\",IF(AND(D8=\"IT-Ипотека\",D24>18000000),\"ВНИМАНИЕ, сумма кредита (с учетом КОМБО-Ипотеки) не может быть больше 18 млн руб.\",IF(AND(D8=\"Собственная программа\",OR(D7=\"МиМО/СПбиЛО\",D7=\"Краснодарский край\"),D24>50000000),\"ВНИМАНИЕ, сумма кредита (с учетом КОМБО-Ипотеки) не может быть больше 50 млн руб.\",IF(AND(D8=\"Собственная программа\",OR(D7=\"иные регионы с численностью СВЫШЕ 1 млн чел.\",D7=\"иные регионы с численностью ДО 1 млн чел.\"),D24>30000000),\"ВНИМАНИЕ, сумма кредита (с учетом КОМБО-Ипотеки) не может быть больше 30 млн руб.\",IF(AND(D8=\"IT-Ипотека\",D7=\"иные регионы с численностью ДО 1 млн чел.\",D24>15000000),\"ВНИМАНИЕ, сумма кредита (с учетом КОМБО-Ипотеки) не может быть больше 15 млн руб.\",\"\")))))))","v":""},{"$nulls":12},"Нет"]
[null,null,"К/З",{"$f":"D24/D19","v":{"v":0.7833333333333333,"d":"78.33%"}}]
[]
[{"$nulls":17},"Специфика расчетов","Обычная сделка"]
[{"$nulls":18},"GoodWood"]
[null,null,"РАСПРЕДЕЛЕНИЕ СРЕДСТВ ПО АККРЕДИТИВАМ"]
[null,null,"Аккредитивы","Размер аккредитива","Условия доступа к аккредитиву \n(Подсказка)"]
[null,null,"1 аккредитив (деньги пойдут на оплату зем. участка)",{"$f":"IF(Цель_кредита=\"покупка земли и строительство дома\",D17-D21,0)","v":{"v":800000,"d":"800,000.00 "}},{"$f":"IF(D31=\"\",\"\",'Матрица по аккред._Инфо'!F3)","v":"Чтобы продавец зем.участка получил деньги за земельный участок, нужно предоставить документы о переходе права на зем. участок и ипотеки в пользу Банка"},{"$nulls":12},"Программа","Семейная ипотека"]
[null,null,"2 аккредитив (деньги за строительство дома)\n\nДля инфо: деньги на аккредитиве будут лежать до момента гос регистрации ипотеки на землю, затем будут переведены на эскроу счет",{"$f":"IF(D11=\"GoodWood\",(IF(D18*'Матрица по аккред._Инфо'!C11-D22-D23<0,0,D18*'Матрица по аккред._Инфо'!C11-D22-D23)),IF((IF($D$10=\"Стандарт\",($D$18*'Матрица по аккред._Инфо'!C4),IF($D$10=\"Ключевой\",($D$18*'Матрица по аккред._Инфо'!D4),IF($D$10=\"Эксклюзив\",($D$18*'Матрица по аккред._Инфо'!E4),0)))-D22-D23)<0,0,(IF($D$10=\"Стандарт\",($D$18*'Матрица по аккред._Инфо'!C4),IF($D$10=\"Ключевой\",($D$18*'Матрица по аккред._Инфо'!D4),IF($D$10=\"Эксклюзив\",($D$18*'Матрица по аккред._Инфо'!E4),0)))-D22-D23)))","v":{"v":22500000,"d":"22,500,000.00 "}},{"$f":"IF(D32=\"\",\"\",'Матрица по аккред._Инфо'!F4)","v":"Чтобы подрядчик получил деньги для пополнения эскроу счета подрядчик/клиент должен предоставить документы, подтверждающие регистрацию ипотеки на зем.участок в пользу Банка"},{"$nulls":13},"IT-Ипотека"]
[null,null,"3 аккредитив (деньги пойдут на строительство стенового комплекта)",{"$f":"IF(D11=\"GoodWood\",(IF(D18*'Матрица по аккред._Инфо'!C11-D22-D23<0,(D18*'Матрица по аккред._Инфо'!C12+D18*'Матрица по аккред._Инфо'!C11-D22-D23),D18*'Матрица по аккред._Инфо'!C12)),IF(((IF($D$10=\"Стандарт\",($D$18*'Матрица по аккред._Инфо'!C4),IF($D$10=\"Ключевой\",($D$18*'Матрица по аккред._Инфо'!D4),IF($D$10=\"Эксклюзив\",($D$18*'Матрица по аккред._Инфо'!E4),0)))-D22-D23)<0),IF($D$10=\"Стандарт\",($D$18*'Матрица по аккред._Инфо'!C5),IF($D$10=\"Ключевой\",($D$18*'Матрица по аккред._Инфо'!D5),IF($D$10=\"Эксклюзив\",($D$18*'Матрица по аккред._Инфо'!E5),0)))+(IF($D$10=\"Стандарт\",($D$18*'Матрица по аккред._Инфо'!C4),IF($D$10=\"Ключевой\",($D$18*'Матрица по аккред._Инфо'!D4),IF($D$10=\"Эксклюзив\",($D$18*'Матрица по аккред._Инфо'!E4),0)))-D22-D23),IF($D$10=\"Стандарт\",($D$18*'Матрица по аккред._Инфо'!C5),IF($D$10=\"Ключевой\",($D$18*'Матрица по аккред._Инфо'!D5),IF($D$10=\"Эксклюзив\",($D$18*'Матрица по аккред._Инфо'!E5),0)))))","v":0},{"$f":"IF(D33=\"\",\"\",'Матрица по аккред._Инфо'!F5)","v":"После того, как фундамент будет построен, подрядчик может получить деньги для продолжения строительства жилого дома. Для этого потребуется предоставить в Банк акт выполненных работ по строительству фундамента"}]
[null,null,"4 аккредитив (деньги пойдут на завершение строительства)",{"$f":"IF(D11=\"GoodWood\",(D18*'Матрица по аккред._Инфо'!C13),IF($D$10=\"Стандарт\",($D$18*'Матрица по аккред._Инфо'!C6),IF($D$10=\"Ключевой\",($D$18*'Матрица по аккред._Инфо'!D6),IF($D$10=\"Эксклюзив\",($D$18*'Матрица по аккред._Инфо'!E6),0))))","v":0},{"$f":"IF(D34=\"\",\"\",IF(D11=\"GoodWood\",'Матрица по аккред._Инфо'!F13,'Матрица по аккред._Инфо'!F6))","v":"После того, как дом будет построен, Подрядчик получает оставшуюся сумму средств. Для этого необходимо предоставить в Банк акт выполненных работ по строительству жилого дома"}]
[null,null,"Проверка_общая стоимость строительства (с учетом МСК)",{"$f":"SUM(D32:D34)+D22+D23","v":{"v":23000000,"d":"23,000,000.00 "}},{"$nulls":13},"Регион"]
[{"$nulls":18},"МиМО/СПбиЛО"]
[{"$nulls":18},"иные регионы"]

{"sheet":"Ввод параметров","index":1,"n_rows":36,"n_cols":13,"rows_kept":36,"hidden":true}
[]
[null,"Категория клиента","Зарплатник/Сотрудник/А-Клуб"]
[null,"Личное страхование","Да"]
[]
[null,"Регион приобретения недвижимости","МиМО/СПбиЛО"]
[null,"Программа кредитования","Госпрограмма 2020",{"$nulls":8},"Цели кредита","Подрядчики"]
[null,"Цель кредита","покупка земли и строительство дома","Заполняет сотрудник ОП!!!",{"$nulls":7},"строительство дома на своем участке","Стандарт"]
[null,"Категория подрядчика","Ключевой","Заполняет сотрудник ОП!!! Категория партнера устанавливается при аккредитации. В ПЕГУ залит справочник, при выборе партнера видно, к какой категории он относится. Если это новый партнер, который еще не аккредитован, то по умолчанию при аккредитации ему будет присвоена категории Стандарт",{"$nulls":7},"покупка земли и строительство дома","Ключевой"]
[{"$nulls":6},"Клиент \"улица\" (НЕ Зарплатный клиент/А-Клуб/Сотрудники) \nБЕЗ личного страхования",{"$f":"'Матрица ставок_Инфо'!C17","v":{"v":0.06999999999999999,"d":"7.00%"}},{"$f":"'Матрица ставок_Инфо'!E17","v":{"v":0.09,"d":"9.00%"}},{"$f":"'Матрица ставок_Инфо'!G17","v":{"v":0.225,"d":"22.50%"}},null,null,"Эксклюзив"]
[null,"Исходные данные для расчетов",{"$nulls":4},"Клиент \"улица\" (НЕ Зарплатный клиент/А-Клуб/Сотрудники) \nС договором личного страхования",{"$f":"'Матрица ставок_Инфо'!C18","v":{"v":0.06,"d":"6.00%"}},{"$f":"'Матрица ставок_Инфо'!E18","v":{"v":0.079,"d":"7.90%"}},{"$f":"'Матрица ставок_Инфо'!G18","v":{"v":0.215,"d":"21.50%"}}]
[null,"Стоимость приобретаемого земельного участка",{"v":1000000,"d":"1,000,000.00 "},"Заполняет сотрудник ОП ТОЛЬКО при цели кредита \"Покупка земли и строительство дома\"!!!",null,null,"Клиент Зарплатный клиент/А-Клуб/Сотрудники\nБЕЗ личного страхования",{"$f":"'Матрица ставок_Инфо'!C19","v":{"v":0.06999999999999999,"d":"7.00%"}},{"$f":"'Матрица ставок_Инфо'!E19","v":{"v":0.09,"d":"9.00%"}},{"$f":"'Матрица ставок_Инфо'!G19","v":{"v":0.225,"d":"22.50%"}},null,1]
[null,"Стоимость строительства",{"v":12000000,"d":"12,000,000.00 "},"Заполняет сотрудник ОП!!!",null,null,"Клиент Зарплатный клиент/А-Клуб/Сотрудники\nС договором личного страхования",{"$f":"'Матрица ставок_Инфо'!C20","v":{"v":0.06,"d":"6.00%"}},{"$f":"'Матрица ставок_Инфо'!E20","v":{"v":0.079,"d":"7.90%"}},{"$f":"'Матрица ставок_Инфо'!G20","v":{"v":0.215,"d":"21.50%"}}]
[null,"Общая стоимость для расчета кредита",{"$f":"C11+C12","v":{"v":13000000,"d":"13,000,000.00 "}},"Рассчитывается автоматически"]
[null,"Размер собственных средств (ПВ)_без учета МСК",{"v":3200000,"d":"3,200,000.00 "},"Заполняет сотрудник ОП!!!",{"$nulls":7},"Категория клиента","Улица"]
[null,"Часть ПВ, которая уже внесена на земельный участок",0,"Заполняет сотрудник ОП, если по земле был внесен аванс!!!",{"$nulls":8},"Зарплатник/Сотрудник/А-Клуб"]
[null,"Часть ПВ, которая уже внесена на строительство",0,"Заполняет сотрудник ОП, если по договору подряда был внесен аванс!!!"]
[null,"Размер МСК в счет ПВ",{"v":800000,"d":"800,000.00 "},"Заполняет сотрудник ОП при использовании МСК!!!"]
[null,"Размер кредитных средств",{"$f":"C13-C14-C17","v":{"v":9000000,"d":"9,000,000.00 "}},{"$f":"IF(C18>12000000,\"Внимание, превышена максимальная суммы кредита. Требуется Комбо-ипотека\",\"\")","v":""},{"$nulls":8},"Нет"]
[null,"К/З",{"$f":"C18/C13","v":{"v":0.6923076923076923,"d":"69%"}},{"$f":"IF(C19>79.9%,\"Внимание! Необходимо увеличить размер ПВ; предельный К/З = 79,9%\",\"\")","v":""}]
[]
[]
[null,"Расчетные данные","Часть кредита по госпрограмме","Часть кредита по Комбо-ипотеке"]
[null,"Сумма кредита",{"$f":"IF(AND(C5=\"МиМО/СПбиЛО\",C18>12000000),12000000,IF(AND(C5=\"иные регионы\",C18>6000000),6000000,C18))","v":{"v":9000000,"d":"9,000,000.00 "}},{"$f":"IF(OR(C23=12000000,C23=6000000),(C18-C23),\"\")","v":""}]
[null,"Ставка по кредиту ",{"$f":"IF(AND(C2=\"Улица\",C3=\"Да\",C6=\"Семейная ипотека\"),H10,IF(AND(C2=\"Зарплатник/Сотрудник/А-Клуб\",C3=\"Да\",C6=\"Семейная ипотека\"),H12,IF(AND(C2=\"Улица\",C3=\"Да\",C6=\"Госпрограмма 2020\"),I10,IF(AND(C2=\"Зарплатник/Сотрудник/А-Клуб\",C3=\"Да\",C6=\"Госпрограмма 2020\"),I12,IF(AND(C2=\"Улица\",C3=\"Нет\",C6=\"Семейная ипотека\"),H9,IF(AND(C2=\"Зарплатник/Сотрудник/А-Клуб\",C3=\"Нет\",C6=\"Семейная ипотека\"),H11,IF(AND(C2=\"Улица\",C3=\"Нет\",C6=\"Госпрограмма 2020\"),I9,IF(AND(C2=\"Зарплатник/Сотрудник/А-Клуб\",C3=\"Нет\",C6=\"Госпрограмма 2020\"),I11,\"\"))))))))","v":{"v":0.079,"d":"7.90%"}},{"$f":"IF(AND(C5=\"МиМО/СПбиЛО\",C18<12000000),\"\",IF(AND(C2=\"Улица\",C3=\"Да\"),J10,IF(AND(C2=\"Зарплатник/Сотрудник/А-Клуб\",C3=\"Да\"),J12,IF(AND(C2=\"Улица\",C3=\"Нет\"),J9,IF(AND(C2=\"Зарплатник/Сотрудник/А-Клуб\",C3=\"Нет\"),J11,IF(AND(C5=\"иные регионы\",C18<6000000),\"\",IF(AND(C2=\"Улица\",C3=\"Да\"),J10,IF(AND(C2=\"Зарплатник/Сотрудник/А-Клуб\",C3=\"Да\"),J12,IF(AND(C2=\"Улица\",C3=\"Нет\"),J9,IF(AND(C2=\"Зарплатник/Сотрудник/А-Клуб\",C3=\"Нет\"),J11,\"\"))))))))))","v":""},{"$nulls":7},"Программа","Семейная ипотека"]
[null,"Средневзвешенная ставка (с учетом КОМБО-Ипотеки)",{"$f":"IF(C18>12000000,(C23*C24+(D23)*D24)/(C18),C24)","v":{"v":0.079,"d":"7.90%"}},{"$nulls":9},"Госпрограмма 2020"]
[null,"Срок кредитования, мес.",{"v":242,"d":"242.00"},{"$f":"IF(MOD(C26-2,12)>0,\"Срок кредитования должен быть кратен 12 мес + 2 мес.\",\"\")","v":""}]
[null,"Платеж по кредиту",{"$f":"PMT(C25/12,C26,C18)","v":{"v":-74466.95131114159,"d":"-74,466.95 ₽"}},"Рассчитывается автоматически"]
[{"$nulls":11},"Регион","МиМО/СПбиЛО"]
[{"$nulls":12},"иные регионы"]
[null,"Аккредитивы","Базовые значения","Условия доступа к аккредитиву (Подсказка)"]
[null,"1 аккредитив (деньги пойдут на оплату зем. участка)",{"$f":"IF(Цель_кредита=\"покупка земли и строительство дома\",C11-C15,0)","v":{"v":1000000,"d":"1,000,000.00 "}},{"$f":"IF(C31=\"\",\"\",'Матрица по аккред._Инфо'!F3)","v":"Чтобы продавец зем.участка получил деньги за земельный участок, нужно предоставить документы о переходе права на зем. участок и ипотеки в пользу Банка"}]
[null,"2 аккредитив (деньги пойдет на строительство фундамента)",{"$f":"IF((IF($C$8=\"Стандарт\",($C$12*'Матрица по аккред._Инфо'!C4),IF($C$8=\"Ключевой\",($C$12*'Матрица по аккред._Инфо'!D4),IF($C$8=\"Эксклюзив\",($C$12*'Матрица по аккред._Инфо'!E4),0)))-C16-C17)<0,0,(IF($C$8=\"Стандарт\",($C$12*'Матрица по аккред._Инфо'!C4),IF($C$8=\"Ключевой\",($C$12*'Матрица по аккред._Инфо'!D4),IF($C$8=\"Эксклюзив\",($C$12*'Матрица по аккред._Инфо'!E4),0)))-C16-C17))","v":{"v":11200000,"d":"11,200,000.00 "}},{"$f":"IF(C32=\"\",\"\",'Матрица по аккред._Инфо'!F4)","v":"Чтобы подрядчик получил деньги для пополнения эскроу счета подрядчик/клиент должен предоставить документы, подтверждающие регистрацию ипотеки на зем.участок в пользу Банка"}]
[null,"3 аккредитив (деньги пойдут оставшиейся строительные этапы)",{"$f":"IF(((IF($C$8=\"Стандарт\",($C$12*'Матрица по аккред._Инфо'!C4),IF($C$8=\"Ключевой\",($C$12*'Матрица по аккред._Инфо'!D4),IF($C$8=\"Эксклюзив\",($C$12*'Матрица по аккред._Инфо'!E4),0)))-C16-C17)<0),IF($C$8=\"Стандарт\",($C$12*'Матрица по аккред._Инфо'!C5),IF($C$8=\"Ключевой\",($C$12*'Матрица по аккред._Инфо'!D5),IF($C$8=\"Эксклюзив\",($C$12*'Матрица по аккред._Инфо'!E5),0)))+(IF($C$8=\"Стандарт\",($C$12*'Матрица по аккред._Инфо'!C4),IF($C$8=\"Ключевой\",($C$12*'Матрица по аккред._Инфо'!D4),IF($C$8=\"Эксклюзив\",($C$12*'Матрица по аккред._Инфо'!E4),0)))-C16-C17),IF($C$8=\"Стандарт\",($C$12*'Матрица по аккред._Инфо'!C5),IF($C$8=\"Ключевой\",($C$12*'Матрица по аккред._Инфо'!D5),IF($C$8=\"Эксклюзив\",($C$12*'Матрица по аккред._Инфо'!E5),0))))","v":0},{"$f":"IF(C33=\"\",\"\",'Матрица по аккред._Инфо'!F5)","v":"После того, как фундамент будет построен, подрядчик может получить деньги для продолжения строительства жилого дома. Для этого потребуется предоставить в Банк акт выполненных работ по строительству фундамента"}]
[null,"4 пост-оплата (в этот момент  дом уже достроен, подрядчик получит деньги после подписания акта до завершении строительства)",{"$f":"IF($C$8=\"Стандарт\",($C$12*'Матрица по аккред._Инфо'!C6),IF($C$8=\"Ключевой\",($C$12*'Матрица по аккред._Инфо'!D6),IF($C$8=\"Эксклюзив\",($C$12*'Матрица по аккред._Инфо'!E6),0)))","v":0},{"$f":"IF(C34=\"\",\"\",'Матрица по аккред._Инфо'!F6)","v":"После того, как дом будет построен, Подрядчик получает оставшуюся сумму средств. Для этого необходимо предоставить в Банк акт выполненных работ по строительству жилого дома"}]
[null,"Проверка_общая стоимость строительства",{"$f":"SUM(C32:C34)","v":{"v":11200000,"d":"11,200,000.00 "}}]
[null,null,{"$f":"IF(C35=C12,\"Проверка пройдена\",\"Стоимость строительства не совпадает с суммой аккредитивов\")","v":"Стоимость строительства не совпадает с суммой аккредитивов"}]

{"sheet":"Участники","index":2,"n_rows":20,"n_cols":15,"rows_kept":20,"hidden":true,"merged":[[1,2,1,3],[2,2,2,3],[4,2,4,3]]}
[{"$nulls":11},"Наполнение списка",null,null,"Наполнение списка"]
[null,"Программа","Госпрограмма 2020",{"$nulls":8},"Семейная ипотека",null,null,"Строительство дома на своем участке"]
[null,"Цель кредита","Покупка земли и строительство дома",{"$nulls":8},"Госпрограмма 2020",null,null,"Покупка земли и строительство дома"]
[]
[null,"Требования к составу участников",{"$f":"IF(AND(C2=\"Семейная ипотека\",C3=\"Строительство дома на своем участке\"),_xlfn.CONCAT(\"- Все собственники земли должны соответствовать условиям Семейной ипотеки (иметь детей). \", \"Если кто-то из собственников земли не имеет детей, то Банк не сможет согласовать кредит по Семейной ипотеке. \",\"Можно предложить воспользоваться Госпрограммой 2020. ; \n\n- По завершению строительства дом должен быть оформлен в собственность тех же лиц, кому принадлежит земля. При этом дом должен быть оформлен в тех же долях, что и земля. \", \"Изменение размера долей или режима собственности не допускается\"),IF(AND(C2=\"Семейная ипотека\",C3=\"Покупка земли и строительство дома\"),_xlfn.CONCAT(\"- Земля должна приобретаться только в собственность лиц, соответствующих требованиям Семейной ипотеки (т.е. имеющих детей). \", \"Земля не может оформляться в собственность иных лиц! При этом иные лица могут быть привлечены в качестве созаемщиков, с учетом требования по наличию дохода (в качестве созаемщика без дохода может выступать только супруг (-а). \",\"Если клиенты хотят включить в состав собственников земли родственников (не имеющих детей), можно предложить оформить кредит по Госпрограмме 2020.\n\n- По завершению строительства дом \", \"должен быть оформлен в собственность тех же лиц, в чью собственность будет приобретаться земля. \", \"При этом дом должен быть оформлен в тех же долях, что и земля. \", \"Изменение размера долей или режима собственности не допускается.\"),IF(AND(C2=\"Госпрограмма 2020\",C3=\"Строительство дома на своем участке\"),_xlfn.CONCAT(\"- Все собственники земли должны быть совершеннолетними гражданами РФ. \", \"Все собственники земли должны иметь доход, за исключением супруга (-и) заемщика. \",\"Если кто-то из собственников земли не имеет дохода (за исключением супруги заемщика), такой земельный участок не может быть согласован. \n\n- По завершению строительства \", \"дом должен быть оформлен в собственность тех же лиц, кому принадлежит земля. При этом дом должен быть оформлен в тех же долях, что и земля. \", \"Изменение размера долей или режима собственности не допускается\"),IF(AND(C2=\"Госпрограмма 2020\",C3=\"Покупка земли и строительство дома\"),_xlfn.CONCAT(\"- Земля должна приобретаться только в собственность совершеннолетних граждан РФ, имещих доход (исключение - супруг (а) заемщика, он может быть без дохода).; \n\n- По завершению строительства дом \", \"должен быть оформлен в собственность тех же лиц, в чью собственность будет приобретаться земля. \", \"При этом дом должен быть оформлен в тех же долях, что и земля. \", \"Изменение размера долей или режима собственности не допускается.\"),\"\"))))","v":"- Земля должна приобретаться только в собственность совершеннолетних граждан РФ, имещих доход (исключение - супруг (а) заемщика, он может быть без дохода).; \n\n- По завершению строительства дом должен быть оформлен в собственность тех же лиц, в чью собственность будет приобретаться земля. При этом дом должен быть оформлен в тех же долях, что и земля. Изменение размера долей или режима собственности не допускается."}]
[]
[null,"Проверь себя (на примере СИ)","Сотрудник ОП может проверить состав участников сделки (еще доработаем блок)"]
[]
[null,"Блок заполняется сотрудников ОП!!!",{"$nulls":3},"Блок заполняется автоматически!!!"]
[null,"Кол-во собственников земли",3,null,null,"Кол-во будущих собственников жилого дом",{"$f":"C10","v":3},{"$nulls":4},"Наполнение списка"]
[{"$nulls":11},"Да"]
[null,"Состав собственников ЗУ","ФИО","Относится к ЦА Семейки",null,"Состав будущих собственников жилого дома","Готов ли банк рассматривать в качестве залогодателя",{"$nulls":4},"Нет"]
[null,"Собственник ЗУ №1","Иванов И.И.","Да",null,{"$f":"C13","v":"Иванов И.И."},{"$f":"IF(D13=\"Да\",\"Да\",\"Нет\")","v":"Да"}]
[null,"Собственник ЗУ №2","Иванова М.П.","Да",null,{"$f":"C14","v":"Иванова М.П."},{"$f":"IF(D14=\"Да\",\"Да\",\"Нет\")","v":"Да"}]
[null,"Собственник ЗУ №3","Петров С.С.","Нет",null,{"$f":"C15","v":"Петров С.С."},{"$f":"IF(D15=\"Да\",\"Да\",\"Нет\")","v":"Нет"}]
[null,"Собственник ЗУ №4"]
[]
[]
[null,"Заключение о возможности проведения сделки с указанным составом собственников зем. участка"]
[null,{"$f":"IF(ISNA(MATCH(L12,G13:G16,0)),\"Поздравляем, состав участников согласован\",\"К сожалению, состав участников не может быть согласован по Семейной ипотеке. Предложите клиентам воспользоваться Госпрограммой 2020\")","v":"К сожалению, состав участников не может быть согласован по Семейной ипотеке. Предложите клиентам воспользоваться Госпрограммой 2020"}]

{"sheet":"Материалы стен","index":3,"n_rows":15,"n_cols":6,"rows_kept":15,"hidden":true}
[]
[null,"Допустимые материалы стен \n(справочник Пеги) ","Комментарии (что можно отнести к категории материалов)",null,"НЕдопустимые материалы стен","Комментарии (что можно отнести к категории материалов)"]
[null,"Кирпич","- Все виды кирпича\n- Поротерм (Pototherm)\n- Керамический блок",null,"Камыш"]
[null,"Каменный","НЕ ВЫБИРАТЬ В ПЕГЕ (будет отказ)",null,"Шлакоблоки"]
[null,"Каркасный ",null,null,"Ракушечник/ракушняк"]
[null,"Металлокаркасные панели/легкие конструкции","- ЛСТК\n- сэндвич-панели",null,"Фанера"]
[null,"Сип-панели",null,null,"Металлические листы"]
[null,"Монолит","- Железобетон\n- Арболит\n- Полистиролбетон (ПСБ)\n- Пенополистиролбетон\n- Стиропорбетон\n- Стиропорпенобетон\n- Пенопластобетон\n- Опилкобетон",null,"Саман"]
[null,"Панель","- Однослойные панели\n- Трехслойные панели\n- Префаб каркасник (панели)\n- CLT",null,"Солома"]
[null,"Газоблок","- Газоблок\n- Газобетон",null,"Шпалы"]
[null,"Пеноблок","- Пеноблок\n- Пенобетон",null,"Грунт"]
[null,"Твинблок","- Твинблок"]
[null,"Брус","- Все виды бруса (кроме клееного бруса)"]
[null,"Клееный брус","- Клееный брус"]
[null,"Кирпично-мололитный"]

{"sheet":"Матрица ставок_Инфо","index":4,"n_rows":21,"n_cols":8,"rows_kept":21,"merged":[[1,1,2,1],[1,2,1,7],[5,2,5,7],[10,2,10,7],[14,1,15,1],[14,2,14,7]]}
[]
[null,"Ипотека на строительство жилого дома\n"]
[null,null,"Семейная ипотека\n(К/З <= 79,9%) ","Семейная ипотека для ДФО\n(К/З <= 79,9%) ","Льготная ипотека \nс гос. поддержкой \n(К/З <= 69,9%) ","IT- ипотека \nс гос. поддержкой \n(К/З <= 79,9%) ","Стандартная программа \n(только для Комбо-ипотеки)\n(К/З <= 79,9%) ","Собственная программа Банка \n(пока в формате Нестандарта)\n(К/З <= 79,9%) "]
[null,"БАЗОВАЯ СТАВКА ",{"v":0.06,"d":"6.00%"},{"v":0.05,"d":"5.00%"},{"v":0.08,"d":"8.00%"},{"v":0.06,"d":"6.00%"},{"v":0.215,"d":"21.50%"},{"v":0.215,"d":"21.50%"}]
[]
[null,"Дисконты К БАЗОВОЙ СТАВКЕ \n(дисконты на сегмент и личное страхование могут суммироваться)"]
[null,"А-Клуб/Сотрудники",{"v":0,"d":"0.00%"},{"$f":"C7","v":{"v":0,"d":"0.00%"}},{"v":0,"d":"0.00%"},{"v":0,"d":"0.00%"},{"v":0,"d":"0.00%"},{"v":0,"d":"0.00%"}]
[null,"Заключение договора личного страхования",{"v":0,"d":"0.00%"},{"$f":"C8","v":{"v":0,"d":"0.00%"}},{"v":-1E-3,"d":"-0.10%"},{"v":0,"d":"0.00%"},{"v":0,"d":"0.00%"},{"v":0,"d":"0.00%"}]
[null,"Быстрый выход на сделку",{"v":0,"d":"0.00%"},{"$f":"C9","v":{"v":0,"d":"0.00%"}},{"v":0,"d":"0.00%"},{"v":0,"d":"0.00%"},{"v":0,"d":"0.00%"},{"v":0,"d":"0.00%"}]
[]
[null,"Надбавки К БАЗОВОЙ СТАВКЕ"]
[null,"Отказ от договора личного страхования",{"v":0.01,"d":"1.00%"},{"$f":"C12","v":{"v":0.01,"d":"1.00%"}},{"v":0.01,"d":"1.00%"},{"v":0,"d":"0.00%"},{"v":0.01,"d":"1.00%"},{"v":0.01,"d":"1.00%"}]
[]
[null,"Расчет ставки с учетом дисконтов и надбавок"]
[null,"Ипотека на строительство жилого дома\n"]
[null,null,"Семейная ипотека\n(К/З <= 79,9%) ","Семейная ипотека для ДФО\n(К/З <= 79,9%) ","Льготная ипотека \nс гос. поддержкой \n(К/З <= 69,9%) ","IT- ипотека \nс гос. поддержкой \n(К/З <= 79,9%) ","Комбо-ипотека (в части суммы, превышающей стандартные суммы по госпрограммам - 12/6 млн руб.)\n(К/З <= 79,9%) ","Собственная программа Банка \n(пока в формате Нестандарта)\n(К/З <= 79,9%) "]
[null,"Клиент \"улица\" или зп-клиент (НЕ А-Клуб/Сотрудники) \nБЕЗ личного страхования",{"$f":"C4+C12","v":{"v":0.06999999999999999,"d":"7.00%"}},{"$f":"D4+D12","v":{"v":0.060000000000000005,"d":"6.00%"}},{"v":0.09,"d":"9.00%"},{"v":0.06,"d":"6.00%"},{"$f":"G4+G12","v":{"v":0.225,"d":"22.50%"}},{"$f":"H4+H12","v":{"v":0.225,"d":"22.50%"}}]
[null,"Клиент \"улица\" или зп-клиент (НЕ А-Клуб/Сотрудники) \nС договором личного страхования",{"$f":"C4+C8","v":{"v":0.06,"d":"6.00%"}},{"$f":"D4+D8","v":{"v":0.05,"d":"5.00%"}},{"v":0.079,"d":"7.90%"},{"v":0.06,"d":"6.00%"},{"$f":"G4+G8","v":{"v":0.215,"d":"21.50%"}},{"$f":"H4+H8","v":{"v":0.215,"d":"21.50%"}}]
[null,"Клиент А-Клуб/Сотрудники\nБЕЗ личного страхования",{"$f":"C4+C7+C12","v":{"v":0.06999999999999999,"d":"7.00%"}},{"v":0.060000000000000005,"d":"6.00%"},{"v":0.09,"d":"9.00%"},{"v":0.06,"d":"6.00%"},{"$f":"G4+G7+G12","v":{"v":0.225,"d":"22.50%"}},{"$f":"H4+H7+H12","v":{"v":0.225,"d":"22.50%"}}]
[null,"Клиент А-Клуб/Сотрудники\nС договором личного страхования",{"$f":"C4+C7+C8","v":{"v":0.06,"d":"6.00%"}},{"v":0.05,"d":"5.00%"},{"v":0.079,"d":"7.90%"},{"v":0.06,"d":"6.00%"},{"v":0.215,"d":"21.50%"},{"$f":"H4+H7+H8","v":{"v":0.215,"d":"21.50%"}}]
[null,"Клиент \"улица\" или зп-клиент (НЕ А-Клуб/Сотрудники) \nБЕЗ личного страхования, вышедший на сделку в течение 30 дней после одобрения",{"$f":"C17+$G$9","v":{"v":0.06999999999999999,"d":"7.00%"}},{"v":0.060000000000000005,"d":"6.00%"},{"v":0.09,"d":"9.00%"},{"v":0.06,"d":"6.00%"},{"$f":"G17+$G$9","v":{"v":0.225,"d":"22.50%"}},{"$f":"H17+$H$9","v":{"v":0.225,"d":"22.50%"}}]

{"sheet":"Матрица по аккред._Инфо","index":5,"n_rows":13,"n_cols":6,"rows_kept":13,"hidden":true}
[]
["Номер аккредитива","Цель","Стандарт","Ключевой","Эксклюзив","Условия доступа к аккредитиву"]
[1,"покупка земли (% от стоимости зем. участка)",{"v":1,"d":"100%"},{"v":1,"d":"100%"},{"v":1,"d":"100%"},"Чтобы продавец зем.участка получил деньги за земельный участок, нужно предоставить документы о переходе права на зем. участок и ипотеки в пользу Банка"]
[2,"строительство",{"v":1,"d":"100%"},{"v":1,"d":"100%"},{"v":1,"d":"100%"},"Чтобы подрядчик получил деньги для пополнения эскроу счета подрядчик/клиент должен предоставить документы, подтверждающие регистрацию ипотеки на зем.участок в пользу Банка"]
[3,"коробка",{"v":0,"d":"0%"},{"v":0,"d":"0%"},{"$f":"100%-E4","v":{"v":0,"d":"0%"}},"После того, как фундамент будет построен, подрядчик может получить деньги для продолжения строительства жилого дома. Для этого потребуется предоставить в Банк акт выполненных работ по строительству фундамента"]
[4,"пост-оплата",{"v":0,"d":"0%"},{"v":0,"d":"0%"},{"$f":"100%-E4-E5","v":{"v":0,"d":"0%"}},"После того, как дом будет построен, Подрядчик получает оставшуюся сумму средств. Для этого необходимо предоставить в Банк акт выполненных работ по строительству жилого дома"]
[]
[]
["Номер аккредитива","Цель","GoodWood",null,null,"Условия доступа к аккредитиву"]
[1,"покупка земли (% от стоимости зем. участка)",{"v":1,"d":"100%"},null,null,"Чтобы продавец зем.участка получил деньги за земельный участок, нужно предоставить документы о переходе права на зем. участок и ипотеки в пользу Банка"]
[2,"начало строительства (фундамент)",{"v":1,"d":"100%"},null,null,"Чтобы подрядчик получил деньги для пополнения эскроу счета подрядчик/клиент должен предоставить документы, подтверждающие регистрацию ипотеки на зем.участок в пользу Банка"]
[3,"коробка",{"v":0,"d":"0%"},null,null,"После того, как фундамент будет построен, подрядчик может получить деньги для продолжения строительства жилого дома. Для этого потребуется предоставить в Банк акт выполненных работ по строительству фундамента"]
[4,"пост-оплата",{"v":0,"d":"0%"},null,null,"После того, как стеновой комплект будет построен, Подрядчик получает оставшуюся сумму средств. Для этого необходимо предоставить в Банк акт выполненных работ по строительству стенового комплекта"]

{"sheet":"Участники_проверка на заведении","index":6,"n_rows":17,"n_cols":12,"rows_kept":17,"hidden":true}
[]
[null,"Строительство на своем земельном участке"]
[]
[null,"Кол-во собственников земли",3,"Заполняется сотрудников ОП!!!",null,"Кол-во будущих собственников жилого дом",{"$f":"C4","v":3},{"$nulls":4},"Наполнение списка"]
[{"$nulls":11},"Да"]
[null,"Состав собственников ЗУ","ФИО","Относится к ЦА Семейки",null,"Состав будущих собственников жилого дома","Готов ли банк рассматривать в качестве залогодателя",{"$nulls":4},"Нет"]
[null,"Собственник ЗУ №1","Иванов И.И.","Да",null,{"$f":"C7","v":"Иванов И.И."},{"$f":"IF(D7=\"Да\",\"Да\",\"Нет\")","v":"Да"}]
[null,"Собственник ЗУ №2","Иванова М.П.","Нет",null,{"$f":"C8","v":"Иванова М.П."},{"$f":"IF(D8=\"Да\",\"Да\",\"Нет\")","v":"Нет"}]
[null,"Собственник ЗУ №3","Петров С.С.","Да",null,{"$f":"C9","v":"Петров С.С."},{"$f":"IF(D9=\"Да\",\"Да\",\"Нет\")","v":"Да"}]
[null,"Собственник ЗУ №4"]
[]
[]
[null,"Заключение о возможности проведения сделки с указанным составом собственников зем. участка"]
[null,{"$f":"IF(ISNA(MATCH(L6,G7:G10,0)),\"Поздравляем, состав участников согласован\",\"К сожалению, состав участников не может быть согласован. Банк не  сможет одобрить строительство на данном земельном участке\")","v":"К сожалению, состав участников не может быть согласован. Банк не  сможет одобрить строительство на данном земельном участке"}]
[]
[null,"Финальные параметры:"]
[null,"ФИО","Роль в сделке","Доля в праве собственности"]